[Event "Titled Tuesday Blitz August 16 Late 2022"]
[White "Romanchuk, Viktor"]
[Black "Melikhov, Evgeny V."]
[WhiteFideId "14109271"]
[BlackFideId "4122046"]
[WhiteElo "2242"]
[BlackElo "1963"]
[Result "1-0"]
[Round "08"]
[TimeControl "180+1"]
[Date "2022.08.18"]
[WhiteClock "0:00:00"]
[BlackClock "0:00:00"]

1. d4 {[%clk 0:00:00]}  Nf6 {[%clk 0:00:00]} 2. c4 {[%clk 0:00:00]}  e6 {[%clk 0:00:00]} 3. Nc3 {[%clk 0:00:00]}  Bb4 {[%clk 0:00:00]} 4. e3 {[%clk 0:00:00]}  b6 {[%clk 0:00:00]} 5. Ne2 {[%clk 0:00:00]}  Ba6 {[%clk 0:00:00]} 6. Ng3 {[%clk 0:00:00]}  O-O {[%clk 0:00:00]} 7. Bd3 {[%clk 0:00:00]}  d5 {[%clk 0:00:00]} 8. cxd5 {[%clk 0:00:00]}  Bxd3 {[%clk 0:00:00]} 9. Qxd3 {[%clk 0:00:00]}  exd5 {[%clk 0:00:00]} 10. O-O {[%clk 0:00:00]}  c5 {[%clk 0:00:00]} 11. dxc5 {[%clk 0:00:00]}  bxc5 {[%clk 0:00:00]} 12. a3 {[%clk 0:00:00]}  Bxc3 {[%clk 0:00:00]} 13. Qxc3 {[%clk 0:00:00]}  Nbd7 {[%clk 0:00:00]} 14. b4 {[%clk 0:00:00]}  cxb4 {[%clk 0:00:00]} 15. axb4 {[%clk 0:00:00]}  Qc8 {[%clk 0:00:00]} 16. Qd4 {[%clk 0:00:00]}  Qc4 {[%clk 0:00:00]} 17. Bb2 {[%clk 0:00:00]}  Qxd4 {[%clk 0:00:00]} 18. Bxd4 {[%clk 0:00:00]}  a6 {[%clk 0:00:00]} 19. Ra4 {[%clk 0:00:00]}  Rab8 {[%clk 0:00:00]} 20. Rb1 {[%clk 0:00:00]}  Rfc8 {[%clk 0:00:00]} 21. h3 {[%clk 0:00:00]}  Rc6 {[%clk 0:00:00]} 22. Nf5 {[%clk 0:00:00]}  Kf8 {[%clk 0:00:00]} 23. Rba1 {[%clk 0:00:00]}  g6 {[%clk 0:00:00]} 24. Rxa6 {[%clk 0:00:00]}  Rxa6 {[%clk 0:00:00]} 25. Rxa6 {[%clk 0:00:00]}  Ne4 {[%clk 0:00:00]} 26. Nd6 {[%clk 0:00:00]}  Rxb4 {[%clk 0:00:00]} 27. Ra8+ {[%clk 0:00:00]}  Ke7 {[%clk 0:00:00]} 28. Nc8+ {[%clk 0:00:00]}  Ke6 {[%clk 0:00:00]} 29. Ra6+ {[%clk 0:00:00]}  Kf5 {[%clk 0:00:00]} 30. Ne7+ {[%clk 0:00:00]}  Kg5 {[%clk 0:00:00]} 31. g3 {[%clk 0:00:00]}  Rb1+ {[%clk 0:00:00]} 32. Kg2 {[%clk 0:00:00]}  Ndf6 {[%clk 0:00:00]} 33. Ra5 {[%clk 0:00:00]}  Kh6 {[%clk 0:00:00]} 34. Bxf6 {[%clk 0:00:00]}  Nxf6 {[%clk 0:00:00]} 35. Nxd5 {[%clk 0:00:00]}  Nxd5 {[%clk 0:00:00]} 36. Rxd5 {[%clk 0:00:00]}  Kg7 {[%clk 0:00:00]} 37. h4 {[%clk 0:00:00]}  h5 {[%clk 0:00:00]} 38. Rg5 {[%clk 0:00:00]}  Kf6 {[%clk 0:00:00]} 39. Rc5 {[%clk 0:00:00]}  Rb3 {[%clk 0:00:00]} 40. Rc4 {[%clk 0:00:00]}  Ra3 {[%clk 0:00:00]} 41. g4 {[%clk 0:00:00]}  hxg4 {[%clk 0:00:00]} 42. Rxg4 {[%clk 0:00:00]}  Rb3 {[%clk 0:00:00]} 43. Rd4 {[%clk 0:00:00]}  Ra3 {[%clk 0:00:00]} 44. Rd5 {[%clk 0:00:00]}  Rb3 {[%clk 0:00:00]} 45. h5 {[%clk 0:00:00]}  gxh5 {[%clk 0:00:00]} 46. Rxh5 {[%clk 0:00:00]}  Ke6 {[%clk 0:00:00]} 47. Ra5 {[%clk 0:00:00]}  Kf6 {[%clk 0:00:00]} 48. Kf3 {[%clk 0:00:00]}  Rb4 {[%clk 0:00:00]} 49. e4 {[%clk 0:00:00]}  Kg6 {[%clk 0:00:00]} 50. Kf4 {[%clk 0:00:00]}  Rb6 {[%clk 0:00:00]} 51. f3 {[%clk 0:00:00]}  f6 {[%clk 0:00:00]} 52. Kg4 {[%clk 0:00:00]}  Rb1 {[%clk 0:00:00]} 53. Ra8 {[%clk 0:00:00]}  Rb5 {[%clk 0:00:00]} 54. Kf4 {[%clk 0:00:00]}  Rc5 {[%clk 0:00:00]} 55. Rg8+ {[%clk 0:00:00]}  Kf7 {[%clk 0:00:00]} 56. Rg1 {[%clk 0:00:00]}  Ra5 {[%clk 0:00:00]} 57. Rd1 {[%clk 0:00:00]}  Kg6 {[%clk 0:00:00]} 58. Rg1+ {[%clk 0:00:00]}  Kf7 {[%clk 0:00:00]} 59. Rd1 {[%clk 0:00:00]}  Kg6 {[%clk 0:00:00]} 60. Rd5 {[%clk 0:00:00]}  Ra4 {[%clk 0:00:00]} 61. Rd6 {[%clk 0:00:00]}  Ra5 {[%clk 0:00:00]} 62. Kg4 {[%clk 0:00:00]}  Rg5+ {[%clk 0:00:00]} 63. Kf4 {[%clk 0:00:00]}  Ra5 {[%clk 0:00:00]} 64. Kg3 {[%clk 0:00:00]}  Rg5+ {[%clk 0:00:00]} 65. Kf2 {[%clk 0:00:00]}  Ra5 {[%clk 0:00:00]} 66. f4 {[%clk 0:00:00]}  Ra3 {[%clk 0:00:00]} 67. e5 {[%clk 0:00:00]}  Kf5 {[%clk 0:00:00]} 68. Rxf6+ {[%clk 0:00:00]} 1-0


[Site "https://www.chess.com"]

[Event "Titled Tuesday Blitz August 16 Late 2022"]
[White "Rose, Felix"]
[Black "Fernandez Hernandez, Gerardo"]
[WhiteFideId "5105722"]
[BlackFideId "2207400"]
[WhiteElo "2039"]
[BlackElo "2169"]
[Result "0-1"]
[Round "08"]
[TimeControl "180+1"]
[Date "2022.08.18"]
[WhiteClock "0:00:00"]
[BlackClock "0:00:00"]

1. e4 {[%clk 0:00:00]}  e6 {[%clk 0:00:00]} 2. d4 {[%clk 0:00:00]}  d5 {[%clk 0:00:00]} 3. Nc3 {[%clk 0:00:00]}  Nc6 {[%clk 0:00:00]} 4. Nf3 {[%clk 0:00:00]}  Nf6 {[%clk 0:00:00]} 5. e5 {[%clk 0:00:00]}  Ne4 {[%clk 0:00:00]} 6. a3 {[%clk 0:00:00]}  Nxc3 {[%clk 0:00:00]} 7. bxc3 {[%clk 0:00:00]}  Be7 {[%clk 0:00:00]} 8. h4 {[%clk 0:00:00]}  h6 {[%clk 0:00:00]} 9. Bd3 {[%clk 0:00:00]}  b6 {[%clk 0:00:00]} 10. h5 {[%clk 0:00:00]}  Bb7 {[%clk 0:00:00]} 11. Nd2 {[%clk 0:00:00]}  Na5 {[%clk 0:00:00]} 12. Qg4 {[%clk 0:00:00]}  Bg5 {[%clk 0:00:00]} 13. f4 {[%clk 0:00:00]}  f5 {[%clk 0:00:00]} 14. exf6 {[%clk 0:00:00]}  Bxf6 {[%clk 0:00:00]} 15. Qxe6+ {[%clk 0:00:00]}  Qe7 {[%clk 0:00:00]} 16. Bg6+ {[%clk 0:00:00]}  Kd8 {[%clk 0:00:00]} 17. Qxe7+ {[%clk 0:00:00]}  Kxe7 {[%clk 0:00:00]} 18. O-O {[%clk 0:00:00]}  Rhd8 {[%clk 0:00:00]} 19. a4 {[%clk 0:00:00]}  Kf8 {[%clk 0:00:00]} 20. Ba3+ {[%clk 0:00:00]}  Kg8 {[%clk 0:00:00]} 21. Nf3 {[%clk 0:00:00]}  Nc4 {[%clk 0:00:00]} 22. Ne5 {[%clk 0:00:00]}  Nxa3 {[%clk 0:00:00]} 23. Rxa3 {[%clk 0:00:00]}  a5 {[%clk 0:00:00]} 24. g4 {[%clk 0:00:00]}  Bc8 {[%clk 0:00:00]} 25. Nf7 {[%clk 0:00:00]}  Rf8 {[%clk 0:00:00]} 26. g5 {[%clk 0:00:00]}  Be7 {[%clk 0:00:00]} 27. gxh6 {[%clk 0:00:00]}  Rxf7 {[%clk 0:00:00]} 28. h7+ {[%clk 0:00:00]}  Kh8 {[%clk 0:00:00]} 29. Bxf7 {[%clk 0:00:00]}  Bxa3 {[%clk 0:00:00]} 30. Bg8 {[%clk 0:00:00]}  Bf5 {[%clk 0:00:00]} 31. Ra1 {[%clk 0:00:00]}  Bd6 {[%clk 0:00:00]} 32. h6 {[%clk 0:00:00]}  Bxh7 {[%clk 0:00:00]} 33. hxg7+ {[%clk 0:00:00]}  Kxg8 {[%clk 0:00:00]} 34. Kf2 {[%clk 0:00:00]}  Re8 {[%clk 0:00:00]} 35. Rh1 {[%clk 0:00:00]}  Re7 {[%clk 0:00:00]} 36. f5 {[%clk 0:00:00]}  Rxg7 {[%clk 0:00:00]} 37. f6 {[%clk 0:00:00]}  Rf7 {[%clk 0:00:00]} 38. Rh6 {[%clk 0:00:00]}  Bf4 {[%clk 0:00:00]} 39. Rh4 {[%clk 0:00:00]}  Rxf6 {[%clk 0:00:00]} 40. Kg2 {[%clk 0:00:00]}  Bd6 {[%clk 0:00:00]} 41. Rg4+ {[%clk 0:00:00]}  Rg6 {[%clk 0:00:00]} 42. Kf3 {[%clk 0:00:00]}  Rxg4 {[%clk 0:00:00]} 43. Kxg4 {[%clk 0:00:00]}  Bxc2 {[%clk 0:00:00]} 44. Kg5 {[%clk 0:00:00]}  Bxa4 {[%clk 0:00:00]} 45. Kf6 {[%clk 0:00:00]}  Bc6 {[%clk 0:00:00]} 46. Ke6 {[%clk 0:00:00]}  a4 {[%clk 0:00:00]} 47. c4 {[%clk 0:00:00]}  a3 {[%clk 0:00:00]} 48. cxd5 {[%clk 0:00:00]}  Bb7 {[%clk 0:00:00]} 49. Kd7 {[%clk 0:00:00]}  a2 {[%clk 0:00:00]} 50. Kd8 {[%clk 0:00:00]}  a1=Q {[%clk 0:00:00]} 51. Kd7 {[%clk 0:00:00]}  Qa4+ {[%clk 0:00:00]} 52. Kd8 {[%clk 0:00:00]}  Qa8+ {[%clk 0:00:00]} 53. Kd7 {[%clk 0:00:00]}  Qc8# {[%clk 0:00:00]} 0-1


[Site "https://www.chess.com"]

[Event "Titled Tuesday Blitz August 16 Late 2022"]
[White "Senthil Maran K"]
[Black "Vasquez Schroeder, Rodrigo"]
[WhiteFideId "25035681"]
[BlackFideId "3400042"]
[WhiteElo "2124"]
[BlackElo "2567"]
[Result "0-1"]
[Round "08"]
[TimeControl "180+1"]
[Date "2022.08.16"]
[WhiteClock "0:00:02"]
[BlackClock "0:01:22"]

1. c4 {[%clk 0:03:00]}  c5 {[%clk 0:02:59]} 2. Nf3 {[%clk 0:03:01]}  Nf6 {[%clk 0:03:00]} 3. g3 {[%clk 0:02:59]}  b6 {[%clk 0:03:00]} 4. Bg2 {[%clk 0:02:59]}  Bb7 {[%clk 0:03:00]} 5. O-O {[%clk 0:03:00]}  e6 {[%clk 0:03:01]} 6. d4 {[%clk 0:03:00]}  cxd4 {[%clk 0:03:01]} 7. Qxd4 {[%clk 0:03:01]}  d6 {[%clk 0:03:01]} 8. Nc3 {[%clk 0:03:00]}  a6 {[%clk 0:03:01]} 9. b3 {[%clk 0:03:01]}  Nbd7 {[%clk 0:03:01]} 10. Ba3 {[%clk 0:03:01]}  Nc5 {[%clk 0:03:02]} 11. Rfd1 {[%clk 0:03:01]}  Be7 {[%clk 0:03:02]} 12. Ng5 {[%clk 0:02:45]}  Bxg2 {[%clk 0:03:01]} 13. Kxg2 {[%clk 0:02:46]}  Qc7 {[%clk 0:03:02]} 14. Nge4 {[%clk 0:02:42]}  Rd8 {[%clk 0:03:02]} 15. f3 {[%clk 0:02:40]}  O-O {[%clk 0:03:01]} 16. Rd2 {[%clk 0:02:36]}  Qb7 {[%clk 0:03:00]} 17. Rad1 {[%clk 0:02:36]}  h6 {[%clk 0:02:59]} 18. Bxc5 {[%clk 0:02:28]}  bxc5 {[%clk 0:02:58]} 19. Qd3 {[%clk 0:02:26]}  Qc6 {[%clk 0:02:51]} 20. Nxf6+ {[%clk 0:02:16]}  Bxf6 {[%clk 0:02:51]} 21. Qe4 {[%clk 0:02:15]}  Qc7 {[%clk 0:02:48]} 22. Na4 {[%clk 0:02:12]}  Rfe8 {[%clk 0:02:45]} 23. h4 {[%clk 0:02:08]}  d5 {[%clk 0:02:40]} 24. cxd5 {[%clk 0:02:02]}  exd5 {[%clk 0:02:40]} 25. Qc2 {[%clk 0:02:02]}  c4 {[%clk 0:02:23]} 26. Rxd5 {[%clk 0:01:57]}  Rxd5 {[%clk 0:02:20]} 27. Rxd5 {[%clk 0:01:58]}  c3 {[%clk 0:02:09]} 28. Rc5 {[%clk 0:01:42]}  Qe7 {[%clk 0:02:01]} 29. e4 {[%clk 0:01:28]}  Rd8 {[%clk 0:01:58]} 30. Rxc3 {[%clk 0:00:17]}  Bxc3 {[%clk 0:01:58]} 31. Qxc3 {[%clk 0:00:16]}  Qa3 {[%clk 0:01:53]} 32. Qc2 {[%clk 0:00:15]}  Qb4 {[%clk 0:01:53]} 33. Kh3 {[%clk 0:00:14]}  Qd2 {[%clk 0:01:44]} 34. Qxd2 {[%clk 0:00:08]}  Rxd2 {[%clk 0:01:44]} 35. a3 {[%clk 0:00:08]}  Rd3 {[%clk 0:01:43]} 36. Nc5 {[%clk 0:00:08]}  Rxf3 {[%clk 0:01:41]} 37. a4 {[%clk 0:00:06]}  a5 {[%clk 0:01:40]} 38. Kg4 {[%clk 0:00:05]}  Rc3 {[%clk 0:01:40]} 39. Nb7 {[%clk 0:00:04]}  Rxb3 {[%clk 0:01:40]} 40. Nxa5 {[%clk 0:00:05]}  Rb4 {[%clk 0:01:40]} 41. Kf4 {[%clk 0:00:05]}  Rxa4 {[%clk 0:01:39]} 42. Nc6 {[%clk 0:00:06]}  Kf8 {[%clk 0:01:37]} 43. h5 {[%clk 0:00:06]}  Ke8 {[%clk 0:01:37]} 44. Ne5 {[%clk 0:00:05]}  Ra5 {[%clk 0:01:36]} 45. Ng4 {[%clk 0:00:05]}  Rxh5 {[%clk 0:01:36]} 46. Ne3 {[%clk 0:00:05]}  Ra5 {[%clk 0:01:35]} 47. Nf5 {[%clk 0:00:05]}  Kf8 {[%clk 0:01:35]} 48. Nd6 {[%clk 0:00:05]}  g6 {[%clk 0:01:34]} 49. g4 {[%clk 0:00:05]}  Ra3 {[%clk 0:01:34]} 50. Nc4 {[%clk 0:00:05]}  Rc3 {[%clk 0:01:33]} 51. Ne5 {[%clk 0:00:06]}  Kg7 {[%clk 0:01:31]} 52. Nd7 {[%clk 0:00:06]}  Rd3 {[%clk 0:01:28]} 53. Ne5 {[%clk 0:00:06]}  Rc3 {[%clk 0:01:23]} 54. Nd7 {[%clk 0:00:06]}  f6 {[%clk 0:01:24]} 55. Nb6 {[%clk 0:00:05]}  Kf7 {[%clk 0:01:22]} 56. e5 {[%clk 0:00:03]}  g5+ {[%clk 0:01:22]} 57. Ke4 {[%clk 0:00:02]}  Rg3 {[%clk 0:01:22]} 0-1


[Site "https://www.chess.com"]

[Event "Titled Tuesday Blitz August 16 Late 2022"]
[White "Sourath Biswas"]
[Black "Chernomordik, Pavel"]
[WhiteFideId "35091484"]
[BlackFideId "2804530"]
[WhiteElo "1777"]
[BlackElo "2217"]
[Result "1-0"]
[Round "08"]
[TimeControl "180+1"]
[Date "2022.08.16"]
[WhiteClock "0:00:10"]
[BlackClock "0:00:08"]

1. d4 {[%clk 0:03:00]}  g6 {[%clk 0:02:59]} 2. Bf4 {[%clk 0:03:00]}  Bg7 {[%clk 0:02:58]} 3. Nc3 {[%clk 0:03:01]}  d6 {[%clk 0:02:58]} 4. e4 {[%clk 0:03:01]}  a6 {[%clk 0:02:58]} 5. Qd2 {[%clk 0:02:59]}  b5 {[%clk 0:02:57]} 6. O-O-O {[%clk 0:02:58]}  Bb7 {[%clk 0:02:56]} 7. f3 {[%clk 0:02:59]}  Nd7 {[%clk 0:02:56]} 8. h4 {[%clk 0:02:56]}  h6 {[%clk 0:02:55]} 9. g4 {[%clk 0:02:55]}  e6 {[%clk 0:02:53]} 10. Nge2 {[%clk 0:02:51]}  Nb6 {[%clk 0:02:52]} 11. Ng3 {[%clk 0:02:51]}  Ne7 {[%clk 0:02:50]} 12. Be2 {[%clk 0:02:47]}  Qd7 {[%clk 0:02:47]} 13. Rhe1 {[%clk 0:01:47]}  O-O-O {[%clk 0:02:46]} 14. Qe3 {[%clk 0:01:46]}  Kb8 {[%clk 0:02:42]} 15. Qf2 {[%clk 0:01:45]}  Nc6 {[%clk 0:02:30]} 16. Be3 {[%clk 0:01:41]}  Na5 {[%clk 0:02:23]} 17. e5 {[%clk 0:01:21]}  Nac4 {[%clk 0:02:13]} 18. Nce4 {[%clk 0:01:17]}  Nxe3 {[%clk 0:02:07]} 19. Qxe3 {[%clk 0:01:18]}  Nd5 {[%clk 0:02:05]} 20. Qb3 {[%clk 0:01:07]}  Qc6 {[%clk 0:02:03]} 21. exd6 {[%clk 0:00:58]}  cxd6 {[%clk 0:02:03]} 22. Kb1 {[%clk 0:00:59]}  Rc8 {[%clk 0:01:58]} 23. Rc1 {[%clk 0:00:58]}  Bxd4 {[%clk 0:01:54]} 24. c4 {[%clk 0:00:58]}  bxc4 {[%clk 0:01:33]} 25. Rxc4 {[%clk 0:00:59]}  Qb6 {[%clk 0:01:33]} 26. Qxb6 {[%clk 0:00:53]}  Bxb6 {[%clk 0:01:30]} 27. Nxd6 {[%clk 0:00:53]}  Rxc4 {[%clk 0:01:29]} 28. Bxc4 {[%clk 0:00:54]}  Bf2 {[%clk 0:01:28]} 29. Nxf7 {[%clk 0:00:32]}  Rf8 {[%clk 0:01:13]} 30. Rxe6 {[%clk 0:00:30]}  Bxg3 {[%clk 0:01:03]} 31. Nxh6 {[%clk 0:00:28]}  Rxf3 {[%clk 0:00:59]} 32. Rxg6 {[%clk 0:00:20]}  Ne3 {[%clk 0:00:50]} 33. Bd3 {[%clk 0:00:20]}  Nxg4 {[%clk 0:00:37]} 34. Rg8+ {[%clk 0:00:15]}  Ka7 {[%clk 0:00:36]} 35. Be2 {[%clk 0:00:14]}  Be4+ {[%clk 0:00:35]} 36. Kc1 {[%clk 0:00:15]}  Bf4+ {[%clk 0:00:32]} 37. Kd1 {[%clk 0:00:15]}  Ne3+ {[%clk 0:00:17]} 38. Ke1 {[%clk 0:00:10]}  Bg3+ {[%clk 0:00:16]} 39. Kd2 {[%clk 0:00:10]}  Nf1+ {[%clk 0:00:15]} 40. Bxf1 {[%clk 0:00:09]}  Rxf1 {[%clk 0:00:15]} 41. Rxg3 {[%clk 0:00:10]}  Rf2+ {[%clk 0:00:13]} 42. Ke3 {[%clk 0:00:10]}  Bb1 {[%clk 0:00:12]} 43. Kxf2 {[%clk 0:00:09]}  Bxa2 {[%clk 0:00:08]} 44. Rg7+ {[%clk 0:00:10]} 1-0


[Site "https://www.chess.com"]

[Event "Titled Tuesday Blitz August 16 Late 2022"]
[White "Stanisz, Patryk"]
[Black "Altman, Joshua"]
[WhiteFideId "1123106"]
[BlackFideId "426210"]
[WhiteElo "1833"]
[BlackElo "1945"]
[Result "0-1"]
[Round "08"]
[TimeControl "180+1"]
[Date "2022.08.18"]
[WhiteClock "0:00:00"]
[BlackClock "0:00:00"]

1. d4 {[%clk 0:00:00]}  Nf6 {[%clk 0:00:00]} 2. c4 {[%clk 0:00:00]}  e6 {[%clk 0:00:00]} 3. Nc3 {[%clk 0:00:00]}  Bb4 {[%clk 0:00:00]} 4. e3 {[%clk 0:00:00]}  O-O {[%clk 0:00:00]} 5. Ne2 {[%clk 0:00:00]}  d5 {[%clk 0:00:00]} 6. a3 {[%clk 0:00:00]}  Bd6 {[%clk 0:00:00]} 7. cxd5 {[%clk 0:00:00]}  exd5 {[%clk 0:00:00]} 8. Ng3 {[%clk 0:00:00]}  c6 {[%clk 0:00:00]} 9. Bd3 {[%clk 0:00:00]}  Re8 {[%clk 0:00:00]} 10. O-O {[%clk 0:00:00]}  Ng4 {[%clk 0:00:00]} 11. Nce2 {[%clk 0:00:00]}  Be6 {[%clk 0:00:00]} 12. h3 {[%clk 0:00:00]}  Nf6 {[%clk 0:00:00]} 13. Nf5 {[%clk 0:00:00]}  Bxf5 {[%clk 0:00:00]} 14. Bxf5 {[%clk 0:00:00]}  Nbd7 {[%clk 0:00:00]} 15. Bc2 {[%clk 0:00:00]}  Ne4 {[%clk 0:00:00]} 16. f3 {[%clk 0:00:00]}  Ng5 {[%clk 0:00:00]} 17. Qd3 {[%clk 0:00:00]}  Nf6 {[%clk 0:00:00]} 18. Nc3 {[%clk 0:00:00]}  Nh5 {[%clk 0:00:00]} 19. h4 {[%clk 0:00:00]}  Nh3+ {[%clk 0:00:00]} 20. gxh3 {[%clk 0:00:00]}  Qxh4 {[%clk 0:00:00]} 21. Qxh7+ {[%clk 0:00:00]}  Kf8 {[%clk 0:00:00]} 22. Rf2 {[%clk 0:00:00]}  Qg3+ {[%clk 0:00:00]} 23. Kf1 {[%clk 0:00:00]}  Qxh3+ {[%clk 0:00:00]} 24. Ke2 {[%clk 0:00:00]}  Ng3+ {[%clk 0:00:00]} 25. Kd2 {[%clk 0:00:00]}  Nf1+ {[%clk 0:00:00]} 26. Ke2 {[%clk 0:00:00]}  Ng3+ {[%clk 0:00:00]} 27. Kd2 {[%clk 0:00:00]}  Nf1+ {[%clk 0:00:00]} 28. Rxf1 {[%clk 0:00:00]}  Qxf1 {[%clk 0:00:00]} 29. Qh8+ {[%clk 0:00:00]}  Ke7 {[%clk 0:00:00]} 30. Qh4+ {[%clk 0:00:00]}  f6 {[%clk 0:00:00]} 31. Qg4 {[%clk 0:00:00]}  Qf2+ {[%clk 0:00:00]} 32. Ne2 {[%clk 0:00:00]}  Kd8 {[%clk 0:00:00]} 33. b4 {[%clk 0:00:00]}  Qxe3+ {[%clk 0:00:00]} 34. Kd1 {[%clk 0:00:00]}  Qxe2# {[%clk 0:00:00]} 0-1


[Site "https://www.chess.com"]

[Event "Titled Tuesday Blitz August 16 Late 2022"]
[White "Stanojoski, Zvonko"]
[Black "Bogaudinov, Rushan"]
[WhiteFideId "15000257"]
[BlackFideId "4129288"]
[WhiteElo "2364"]
[BlackElo "2040"]
[Result "0-1"]
[Round "08"]
[TimeControl "180+1"]
[Date "2022.08.18"]
[WhiteClock "0:00:00"]
[BlackClock "0:00:00"]

1. e4 {[%clk 0:00:00]}  a6 {[%clk 0:00:00]} 2. d4 {[%clk 0:00:00]}  e6 {[%clk 0:00:00]} 3. f4 {[%clk 0:00:00]}  b5 {[%clk 0:00:00]} 4. Nf3 {[%clk 0:00:00]}  Bb7 {[%clk 0:00:00]} 5. Bd3 {[%clk 0:00:00]}  c5 {[%clk 0:00:00]} 6. c3 {[%clk 0:00:00]}  d5 {[%clk 0:00:00]} 7. e5 {[%clk 0:00:00]}  c4 {[%clk 0:00:00]} 8. Bc2 {[%clk 0:00:00]}  g6 {[%clk 0:00:00]} 9. Be3 {[%clk 0:00:00]}  Nh6 {[%clk 0:00:00]} 10. h3 {[%clk 0:00:00]}  Be7 {[%clk 0:00:00]} 11. g4 {[%clk 0:00:00]}  Nc6 {[%clk 0:00:00]} 12. O-O {[%clk 0:00:00]}  b4 {[%clk 0:00:00]} 13. f5 {[%clk 0:00:00]}  Nxf5 {[%clk 0:00:00]} 14. gxf5 {[%clk 0:00:00]}  gxf5 {[%clk 0:00:00]} 15. Kh2 {[%clk 0:00:00]}  Kd7 {[%clk 0:00:00]} 16. Ba4 {[%clk 0:00:00]}  Kc7 {[%clk 0:00:00]} 17. Bxc6 {[%clk 0:00:00]}  Bxc6 {[%clk 0:00:00]} 18. cxb4 {[%clk 0:00:00]}  Bxb4 {[%clk 0:00:00]} 19. a3 {[%clk 0:00:00]}  Be7 {[%clk 0:00:00]} 20. b4 {[%clk 0:00:00]}  a5 {[%clk 0:00:00]} 21. Nc3 {[%clk 0:00:00]}  axb4 {[%clk 0:00:00]} 22. axb4 {[%clk 0:00:00]}  Bxb4 {[%clk 0:00:00]} 23. Qd2 {[%clk 0:00:00]}  Be7 {[%clk 0:00:00]} 24. Bg5 {[%clk 0:00:00]}  h6 {[%clk 0:00:00]} 25. Bxe7 {[%clk 0:00:00]}  Qxe7 {[%clk 0:00:00]} 26. Rxa8 {[%clk 0:00:00]}  Rxa8 {[%clk 0:00:00]} 27. Qxh6 {[%clk 0:00:00]}  Ra3 {[%clk 0:00:00]} 28. Rc1 {[%clk 0:00:00]}  Qb4 {[%clk 0:00:00]} 29. Qd2 {[%clk 0:00:00]}  Rb3 {[%clk 0:00:00]} 30. h4 {[%clk 0:00:00]}  Ba4 {[%clk 0:00:00]} 31. Nxa4 {[%clk 0:00:00]}  Qxa4 {[%clk 0:00:00]} 32. Rf1 {[%clk 0:00:00]}  Qa3 {[%clk 0:00:00]} 33. Kg3 {[%clk 0:00:00]}  Rd3 {[%clk 0:00:00]} 34. Qg5 {[%clk 0:00:00]}  Rxd4 {[%clk 0:00:00]} 35. Qf6 {[%clk 0:00:00]}  Rg4+ {[%clk 0:00:00]} 36. Kh3 {[%clk 0:00:00]}  Qf8 {[%clk 0:00:00]} 37. Rg1 {[%clk 0:00:00]}  Rxg1 {[%clk 0:00:00]} 38. Nxg1 {[%clk 0:00:00]}  Qg8 {[%clk 0:00:00]} 39. Kh2 {[%clk 0:00:00]}  Qg6 {[%clk 0:00:00]} 40. Qe7+ {[%clk 0:00:00]}  Kc6 {[%clk 0:00:00]} 41. Nf3 {[%clk 0:00:00]}  Qg4 {[%clk 0:00:00]} 42. Qe8+ {[%clk 0:00:00]}  Kc5 {[%clk 0:00:00]} 43. Qe7+ {[%clk 0:00:00]}  Kb5 {[%clk 0:00:00]} 44. Qb7+ {[%clk 0:00:00]}  Kc5 {[%clk 0:00:00]} 45. Qa7+ {[%clk 0:00:00]}  Kb5 {[%clk 0:00:00]} 46. Nd4+ {[%clk 0:00:00]}  Kb4 {[%clk 0:00:00]} 47. Qb6+ {[%clk 0:00:00]}  Kc3 {[%clk 0:00:00]} 48. Nb5+ {[%clk 0:00:00]}  Kd3 {[%clk 0:00:00]} 49. Qf2 {[%clk 0:00:00]}  c3 {[%clk 0:00:00]} 50. Na3 {[%clk 0:00:00]}  d4 {[%clk 0:00:00]} 51. Qc2+ {[%clk 0:00:00]}  Ke3 {[%clk 0:00:00]} 52. Nc4+ {[%clk 0:00:00]}  Kf4 {[%clk 0:00:00]} 53. Qf2+ {[%clk 0:00:00]}  Ke4 {[%clk 0:00:00]} 0-1


[Site "https://www.chess.com"]